fUSD/lending_fUSD_20240823
["ID","MTS","AMOUNT","RATE_DAILY","PERIOD"]
[335651476,1724400642061,-550.95,0.00010958,2]
[335651478,1724400642071,-500.0,0.00010958,2]
[335651480,1724400642082,-406.04522109,0.00010958,2]
[335651482,1724400642092,-500.0,0.00010958,2]
[335651484,1724400642103,-500.0,0.00010958,2]
[335651486,1724400642113,-594.94,0.00010958,2]
[335651488,1724400642124,-500.0,0.00010958,2]
[335651490,1724400642134,-500.0,0.00010958,2]
[335651492,1724400642145,-500.0,0.00010958,2]
[335651494,1724400642155,-500.0,0.00010958,2]
[335651496,1724400642165,-500.0,0.00010958,2]
[335651499,1724400642176,-500.0,0.00010958,2]
[335651501,1724400642186,-500.0,0.00010958,2]
[335651503,1724400642197,-500.0,0.00010958,2]
[335651505,1724400642207,-500.0,0.00010958,2]
[335651507,1724400642218,-500.0,0.00010958,2]
[335651509,1724400642229,-500.0,0.00010958,2]
[335651511,1724400642239,-500.0,0.00010958,2]
[335651513,1724400642250,-523.45123283,0.00010958,2]
[335651515,1724400642262,-497.48107978,0.00010958,2]
[335651517,1724400642273,-500.0,0.00010958,2]
[335651519,1724400642283,-500.0,0.00010958,2]
[335651522,1724400642294,-505.26342142,0.00010958,2]
[335651524,1724400642305,-500.0,0.00010958,2]
[335651526,1724400642315,-520.02453418,0.00010958,2]
[335651528,1724400642326,-500.0,0.00010958,2]
[335651530,1724400642336,-500.0,0.00010958,2]
[335651532,1724400642346,-513.51678688,0.00010958,2]
[335651534,1724400642357,-500.0,0.00010958,2]
[335651536,1724400642369,-500.0,0.00010958,2]
[335651539,1724400642379,-500.0,0.00010958,2]
[335651541,1724400642390,-504.4979577,0.00010958,2]
[335651543,1724400642401,-473.75118455,0.00010958,2]
[335651545,1724400642411,-507.50254003,0.00010958,2]
[335651547,1724400642421,-522.7489848,0.00010958,2]
[335651549,1724400642433,-500.0,0.00010958,2]
[335651551,1724400642444,-625.08,0.00010958,2]
[335651553,1724400642454,-500.0,0.00010958,2]
[335651555,1724400642465,-500.0,0.00010958,2]
[335651557,1724400642475,-500.0,0.00010958,2]
[335651559,1724400642486,-500.0,0.00010958,2]
[335651561,1724400642497,-213.51776603,0.00010958,2]
[335651563,1724400642507,-500.0,0.00010958,2]
[335651565,1724400642518,-500.0,0.00010958,2]
[335651567,1724400642529,-500.0,0.00010958,2]
[335651570,1724400642540,-500.0,0.00010958,2]
[335651572,1724400642550,-500.0,0.00010958,2]
[335651574,1724400642560,-500.0,0.00010958,2]
[335651576,1724400642571,-500.0,0.00010958,2]
[335651578,1724400642582,-500.0,0.00010958,2]
[335651580,1724400642593,-500.0,0.00010958,2]
[335651582,1724400642603,-500.0,0.00010958,2]
[335651584,1724400642614,-516.78855901,0.00010958,2]
[335651586,1724400642625,-500.0,0.00010958,2]
[335651588,1724400642636,-245.08,0.00010959,2]
[335651591,1724400642646,-164.84,0.00010959,2]
[335651593,1724400642656,-824.23,0.00010959,2]
[335651595,1724400642666,-500.0,0.00010983,2]
[335651597,1724400642677,-500.0,0.00010983,2]
[335651599,1724400642687,-500.0,0.00010983,2]
[335651601,1724400642698,-500.0,0.00010983,2]
[335651603,1724400642708,-500.0,0.00010983,2]
[335651605,1724400642718,-818.25,0.00010983,2]
[335651607,1724400642729,-500.0,0.00010983,2]
[335651609,1724400642740,-500.0,0.00010983,2]
[335651612,1724400642751,-500.0,0.00010983,2]
[335651614,1724400642761,-500.0,0.00010983,2]
[335651616,1724400642772,-625.9,0.00010984,2]
[335651618,1724400642783,-4415.16,0.00010984,2]
[335651620,1724400642793,-9902.43,0.00010984,2]
[335651622,1724400642805,-300.0,0.00010985,2]
[335651624,1724400642815,-500.0,0.00010985,2]
[335651626,1724400642826,-500.0,0.00010985,2]
[335651628,1724400642837,-500.0,0.00010985,2]
[335651630,1724400642848,-500.0,0.00010985,2]
[335651633,1724400642859,-500.0,0.00010985,2]
[335651635,1724400642873,-500.0,0.00010985,2]
[335651637,1724400642884,-500.0,0.00010985,2]
[335651639,1724400642895,-256.5,0.00010985,2]
[335651641,1724400642907,-500.0,0.00010985,2]
[335651643,1724400642917,-500.0,0.00010985,2]
[335651645,1724400642928,-500.0,0.00010985,2]
[335651648,1724400642939,-500.0,0.00010985,2]
[335651650,1724400642950,-500.0,0.00010985,2]
[335651652,1724400642960,-797.12211447,0.00010989,2]
[335651654,1724400642971,-500.0,0.00010992,2]
[335651656,1724400642982,-500.0,0.00010992,2]
[335651658,1724400642993,-4426.12,0.00010992,2]
[335651660,1724400643004,-500.0,0.00010992,2]
[335651662,1724400643015,-5256.03,0.00010992,2]
[335651664,1724400643026,-500.0,0.00010992,2]
[335651667,1724400643038,-500.0,0.00010992,2]
[335651669,1724400643049,-500.0,0.00010992,2]
[335651671,1724400643060,-500.0,0.00010992,2]
[335651673,1724400643071,-500.0,0.00010992,2]
[335651675,1724400643082,-580.15873914,0.00010992,2]
[335651677,1724400643093,-609.48,0.00010992,2]
[335651679,1724400643104,-500.0,0.00010992,2]
[335651681,1724400643115,-500.0,0.00010992,2]
[335651684,1724400643125,-500.0,0.00010993,2]
[335651687,1724400643136,-548.35358025,0.00010993,2]
[335651689,1724400643148,-532.30824008,0.00010993,2]
[335651691,1724400643158,-500.0,0.00010993,2]
[335651693,1724400643169,-530.66317901,0.00010993,2]
[335651695,1724400643179,-500.0,0.00010993,2]
[335651697,1724400643189,-540.02353004,0.00010993,2]
[335651699,1724400643200,-641.32297898,0.00010993,2]
[335651701,1724400643211,-500.0,0.00010993,2]
[335651703,1724400643221,-568.60204925,0.00010993,2]
[335651706,1724400643232,-500.0,0.00010993,2]
[335651708,1724400643242,-500.0,0.00010993,2]
[335651710,1724400643253,-500.0,0.00010993,2]
[335651712,1724400643263,-500.0,0.00010993,2]
[335651714,1724400643273,-500.0,0.00010993,2]
[335651716,1724400643284,-500.0,0.00010993,2]
[335651719,1724400643295,-500.0,0.00010993,2]
[335651721,1724400643306,-500.0,0.00010993,2]
[335651723,1724400643317,-500.0,0.00010993,2]
[335651725,1724400643328,-352.76930208,0.00010993,2]
[335651727,1724400643338,-500.0,0.00010993,2]
[335651729,1724400643349,-500.0,0.00010993,2]
[335651731,1724400643360,-500.0,0.00010993,2]
[335651733,1724400643371,-693.94,0.00010993,2]
[335651735,1724400643381,-500.0,0.00010993,2]
[335651737,1724400643391,-500.0,0.00010993,2]
[335651739,1724400643401,-501.46517872,0.00010993,2]
[335651741,1724400643412,-500.0,0.00010993,2]
[335651743,1724400643423,-1008.8,0.00010993,2]
[335651745,1724400643433,-500.0,0.00010993,2]
[335651747,1724400643444,-146.16528275,0.00010993,2]
[335651790,1724400643965,-330.74107349,0.00010992,2]
[335651816,1724400644292,-182.66892651,0.00010992,2]
[335651818,1724400644301,-513.52,0.00010992,2]
[335651820,1724400644311,-353.83471725,0.00010993,2]
[335651822,1724400644321,-500.0,0.00010993,2]
[335651824,1724400644331,-500.0,0.00010993,2]
[335651826,1724400644340,-11.70188014,0.00010993,2]
[335651828,1724400644352,-488.29811986,0.00010993,2]
[335651830,1724400644361,-118.70566453,0.00010993,2]
[335651832,1724400644373,-381.53794781,0.00010993,2]
[335651834,1724400644382,-500.0,0.00010993,2]
[335651836,1724400644392,-500.0,0.00010993,2]
[335651838,1724400644401,-500.0,0.00010993,2]
[335651840,1724400644410,-500.0,0.00010993,2]
[335651842,1724400644419,-500.0,0.00010993,2]
[335651844,1724400644428,-500.0,0.00010993,2]
[335651846,1724400644437,-500.0,0.00010993,2]
[335651848,1724400644446,-500.0,0.00010993,2]
[335651850,1724400644455,-500.0,0.00010993,2]
[335651851,1724400644464,-500.0,0.00010993,2]
[335651853,1724400644473,-500.0,0.00010993,2]
[335651855,1724400644482,-500.0,0.00010993,2]
[335651857,1724400644491,-500.0,0.00010993,2]
[335651859,1724400644511,-500.0,0.00010993,2]
[335651861,1724400644520,-500.0,0.00010993,2]
[335651863,1724400644529,-500.0,0.00010993,2]
[335651865,1724400644538,-669.55,0.00010993,2]
[335651867,1724400644547,-500.16106579,0.00010993,2]
[335651869,1724400644556,-500.0,0.00010993,2]
[335651871,1724400644565,-651.24,0.00010993,2]
[335651873,1724400644574,-500.0,0.00010993,2]
[335651875,1724400644583,-501.3058253,0.00010993,2]
[335651877,1724400644591,-753.21,0.00010993,2]
[335651878,1724400644601,-505.08065905,0.00010993,2]
[335651880,1724400644610,-624.52,0.00010993,2]
[335651882,1724400644620,-500.0,0.00010993,2]
[335651884,1724400644629,-771.93,0.00010993,2]
[335651886,1724400644638,-1468.02,0.00010993,2]
[335651888,1724400644647,-500.0,0.00010993,2]
[335651890,1724400644656,-568.22,0.00010993,2]
[335651892,1724400644666,-500.0,0.00010993,2]
[335651894,1724400644675,-500.0,0.00010993,2]
[335651896,1724400644685,-500.0,0.00010993,2]
[335651898,1724400644695,-500.0,0.00010993,2]
[335651900,1724400644704,-941.09,0.00010993,2]
[335651902,1724400644713,-500.0,0.00010993,2]
[335651904,1724400644722,-500.0,0.00010993,2]
[335651906,1724400644732,-500.0,0.00010993,2]
[335651908,1724400644741,-500.0,0.00010993,2]
[335651910,1724400644753,-500.0,0.00010993,2]
[335651912,1724400644762,-581.91,0.00010993,2]
[335651914,1724400644772,-500.0,0.00010993,2]
[335651916,1724400644781,-500.0,0.00010993,2]
[335651918,1724400644790,-500.0,0.00010993,2]
[335651920,1724400644800,-1015.75,0.00010993,2]
[335651922,1724400644809,-500.0,0.00010993,2]
[335651924,1724400644818,-500.0,0.00010993,2]
[335651926,1724400644827,-500.0,0.00010993,2]
[335651928,1724400644836,-500.0,0.00010993,2]
[335651930,1724400644846,-500.0,0.00010993,2]
[335651932,1724400644856,-500.0,0.00010993,2]
[335651934,1724400644872,-500.0,0.00010993,2]
[335651936,1724400644882,-753.9,0.00010993,2]
[335651938,1724400644892,-500.0,0.00010993,2]
[335651940,1724400644903,-500.0,0.00010993,2]
[335651942,1724400644912,-500.0,0.00010993,2]
[335651944,1724400644921,-1382.8,0.00010993,2]
[335651946,1724400644930,-500.0,0.00010993,2]
[335651948,1724400644941,-753.6,0.00010993,2]
[335651950,1724400644951,-364.01664928,0.00010993,2]
[335651951,1724400644960,-500.0,0.00010993,2]
[335651953,1724400644969,-500.0,0.00010993,2]
[335651955,1724400644979,-642.6,0.00010993,2]
[335651957,1724400644988,-500.0,0.00010993,2]
[335651959,1724400644998,-502.20278073,0.00010993,2]
[335651961,1724400645008,-1247.56,0.00010993,2]
[335651963,1724400645017,-500.0,0.00010993,2]
[335651965,1724400645026,-500.0,0.00010993,2]
[335651967,1724400645036,-500.0,0.00010993,2]
[335651969,1724400645045,-1013.61,0.00010993,2]
[335651971,1724400645054,-1259.99,0.00010993,2]
[335651973,1724400645064,-500.0,0.00010993,2]
[335651975,1724400645073,-1422.15,0.00010993,2]
[335651977,1724400645083,-500.0,0.00010993,2]
[335651979,1724400645092,-500.0,0.00010993,2]
[335651981,1724400645101,-505.90066568,0.00010993,2]
[335651983,1724400645110,-688.2,0.00010993,2]
[335651985,1724400645120,-500.0,0.00010993,2]
[335651987,1724400645129,-500.0,0.00010993,2]
[335651989,1724400645138,-500.0,0.00010993,2]
[335651990,1724400645147,-1125.94,0.00010993,2]
[335651992,1724400645156,-828.08,0.00010993,2]
[335651994,1724400645165,-164.91116563,0.00010993,2]
[335651996,1724400645174,-500.0,0.00010993,2]
[335651998,1724400645184,-500.0,0.00010993,2]
[335652000,1724400645194,-500.0,0.00010993,2]
[335652002,1724400645203,-635.66,0.00010993,2]
[335652004,1724400645212,-500.0,0.00010993,2]
[335652006,1724400645222,-500.0,0.00010993,2]
[335652008,1724400645231,-500.0,0.00010993,2]
[335652010,1724400645240,-688.1,0.00010993,2]
[335652012,1724400645250,-500.0,0.00010993,2]
[335652014,1724400645260,-500.0,0.00010993,2]
[335652016,1724400645269,-1580.04,0.00010993,2]
[335652018,1724400645279,-1246.4,0.00010993,2]
[335652020,1724400645288,-500.0,0.00010993,2]
[335652022,1724400645297,-500.0,0.00010993,2]
[335652024,1724400645307,-769.32,0.00010993,2]
[335652026,1724400645316,-500.0,0.00010993,2]
[335652028,1724400645326,-500.0,0.00010993,2]
[335652030,1724400645335,-500.0,0.00010993,2]
[335652032,1724400645344,-2559.71,0.00010993,2]
[335652034,1724400645354,-500.0,0.00010993,2]
[335652036,1724400645363,-573.59,0.00010993,2]
[335652038,1724400645373,-500.0,0.00010993,2]
[335652040,1724400645382,-4788.83,0.00010993,2]
[335652042,1724400645392,-593.99088607,0.00010993,2]
[335652043,1724400645401,-500.0,0.00010993,2]
[335652045,1724400645411,-500.0,0.00010993,2]
[335652047,1724400645420,-1442.45,0.00010993,2]
[335652049,1724400645430,-502.60145836,0.00010993,2]
[335652051,1724400645440,-2434.47,0.00010993,2]
[335652054,1724400645451,-500.0,0.00010993,2]
[335652055,1724400645461,-500.0,0.00010993,2]
[335652057,1724400645470,-2084.78,0.00010993,2]
[335652059,1724400645479,-2365.1,0.00010993,2]
[335652061,1724400645489,-848.69,0.00010993,2]
[335652063,1724400645498,-500.0,0.00010993,2]
[335652065,1724400645508,-1354.96,0.00010993,2]
[335652067,1724400645518,-500.0,0.00010993,2]
[335652069,1724400645528,-1487.09,0.00010993,2]
[335652071,1724400645537,-500.0,0.00010993,2]
[335652073,1724400645547,-704.95,0.00010993,2]
[335652075,1724400645557,-500.0,0.00010993,2]
[335652077,1724400645566,-500.0,0.00010993,2]
[335652079,1724400645575,-501.52613337,0.00010993,2]
[335652081,1724400645584,-500.0,0.00010993,2]
[335652083,1724400645594,-500.0,0.00010993,2]
[335652085,1724400645604,-500.0,0.00010993,2]
[335652087,1724400645613,-500.0,0.00010993,2]
[335652089,1724400645623,-200.54915302,0.00010993,2]
[335652091,1724400645633,-500.0,0.00010993,2]
[335652093,1724400645642,-324.96834742,0.00010993,2]
[335652095,1724400645651,-500.0,0.00010993,2]
[335652097,1724400645661,-500.0,0.00010993,2]
[335652099,1724400645670,-500.0,0.00010993,2]
[335652101,1724400645679,-19526.7,0.00010994,2]
[335652103,1724400645689,-300.0,0.00010995,2]
[335652105,1724400645698,-154.515368,0.00010995,2]
[335652107,1724400645708,-346.77,0.00010995,2]
[335652109,1724400645717,-500.0,0.00010995,2]
[335652111,1724400645727,-500.0,0.00010995,2]
[335652113,1724400645736,-500.0,0.00010995,2]
[335652115,1724400645746,-500.0,0.00010995,2]
[335652117,1724400645756,-500.0,0.00010995,2]
[335652118,1724400645765,-500.0,0.00010995,2]
[335652120,1724400645775,-500.0,0.00010995,2]
[335652122,1724400645785,-312.32,0.00010995,2]
[335652124,1724400645794,-363.95,0.00010995,2]
[335652126,1724400645804,-551.07,0.00010995,2]
[335652128,1724400645814,-500.0,0.00010995,2]
[335652131,1724400645826,-647.19551938,0.00010995,2]
[335652133,1724400645835,-500.0,0.00010995,2]
[335652135,1724400645845,-283.81,0.00010995,2]
[335652136,1724400645854,-500.0,0.00010995,2]
[335652138,1724400645867,-500.0,0.00010995,2]
[335652140,1724400645877,-500.0,0.00010995,2]
[335652142,1724400645887,-252.43,0.00010995,2]
[335652144,1724400645897,-500.0,0.00010995,2]
[335652146,1724400645907,-537.01,0.00010995,2]
[335652148,1724400645918,-500.0,0.00010995,2]
[335652151,1724400645929,-500.0,0.00010995,2]
[335652153,1724400645939,-500.0,0.00010995,2]
[335652155,1724400645951,-500.0,0.00010995,2]
[335652157,1724400645962,-488.78,0.00010995,2]
[335652159,1724400645972,-500.0,0.00010995,2]
[335652161,1724400645981,-475.85721079,0.00010995,2]
[335652163,1724400645991,-389.26,0.00010995,2]
[335652165,1724400646001,-518.63,0.00010995,2]
[335652167,1724400646010,-218.78,0.00010995,2]
[335652169,1724400646020,-300.0,0.00010996,2]
[335652171,1724400646029,-300.0,0.00010996,2]
[335652173,1724400646038,-179.28019,0.00010996,2]
[335652174,1724400646048,-154.515368,0.00010996,2]
[335652176,1724400646057,-150.0,0.00010996,2]
[335652178,1724400646067,-154.515368,0.00010997,2]
[335652180,1724400646076,-500.0,0.00010997,2]
[335652182,1724400646086,-548.26,0.00010997,2]
[335652184,1724400646095,-500.0,0.00010997,2]
[335652186,1724400646105,-500.0,0.00010997,2]
[335652188,1724400646114,-500.0,0.00010997,2]
[335652190,1724400646124,-578.22,0.00010997,2]
[335652192,1724400646133,-500.0,0.00010997,2]
[335652194,1724400646143,-500.0,0.00010997,2]
[335652196,1724400646152,-605.98,0.00010997,2]
[335652199,1724400646162,-500.0,0.00010997,2]
[335652201,1724400646182,-500.0,0.00010997,2]
[335652203,1724400646192,-500.0,0.00010997,2]
[335652205,1724400646202,-501.53973111,0.00010997,2]
[335652208,1724400646212,-500.0,0.00010997,2]
[335652210,1724400646222,-693.94,0.00010997,2]
[335652212,1724400646232,-500.0,0.00010997,2]
[335652214,1724400646242,-500.0,0.00010997,2]
[335652216,1724400646254,-1008.8,0.00010997,2]
[335652218,1724400646264,-500.0,0.00010997,2]
[335652220,1724400646274,-500.0,0.00010997,2]
[335652222,1724400646284,-500.0,0.00010997,2]
[335652224,1724400646294,-500.0,0.00010997,2]
[335652226,1724400646305,-500.0,0.00010997,2]
[335652228,1724400646315,-500.0,0.00010997,2]
[335652230,1724400646325,-500.0,0.00010997,2]
[335652232,1724400646335,-500.0,0.00010997,2]
[335652234,1724400646345,-500.0,0.00010997,2]
[335652236,1724400646354,-500.0,0.00010997,2]
[335652237,1724400646364,-500.0,0.00010997,2]
[335652238,1724400646374,-550.42,0.00010997,2]
[335652239,1724400646384,-500.0,0.00010997,2]
[335652240,1724400646394,-500.0,0.00010997,2]
[335652241,1724400646405,-500.0,0.00010997,2]
[335652242,1724400646417,-500.0,0.00010997,2]
[335652244,1724400646427,-500.0,0.00010997,2]
[335652245,1724400646437,-500.0,0.00010997,2]
[335652248,1724400646447,-500.0,0.00010997,2]
[335652250,1724400646457,-669.55,0.00010997,2]
[335652252,1724400646467,-500.0,0.00010997,2]
[335652254,1724400646477,-651.24,0.00010997,2]
[335652256,1724400646487,-472.46690805,0.00010997,2]
[335652258,1724400646497,-753.21,0.00010997,2]
[335652260,1724400646506,-624.52,0.00010997,2]
[335652262,1724400646516,-500.0,0.00010997,2]
[335652264,1724400646526,-771.93,0.00010997,2]
[335652266,1724400646537,-1468.02,0.00010997,2]
[335652268,1724400646547,-500.0,0.00010997,2]
[335652270,1724400646557,-568.22,0.00010997,2]
[335652272,1724400646566,-500.0,0.00010997,2]
[335652274,1724400646576,-500.0,0.00010997,2]
[335652276,1724400646586,-500.0,0.00010997,2]
[335652277,1724400646596,-500.0,0.00010997,2]
[335652280,1724400646606,-941.09,0.00010997,2]
[335652281,1724400646616,-507.84,0.00010997,2]
[335652283,1724400646627,-500.0,0.00010997,2]
[335652285,1724400646636,-500.0,0.00010997,2]
[335652287,1724400646646,-500.0,0.00010997,2]
[335652289,1724400646656,-581.91,0.00010997,2]
[335652291,1724400646665,-500.0,0.00010997,2]
[335652293,1724400646675,-500.0,0.00010997,2]
[335652295,1724400646685,-500.0,0.00010997,2]
[335652297,1724400646696,-1015.75,0.00010997,2]
[335652299,1724400646707,-500.0,0.00010997,2]
[335652301,1724400646717,-500.0,0.00010997,2]
[335652304,1724400646727,-500.0,0.00010997,2]
[335652306,1724400646739,-500.0,0.00010997,2]
[335652308,1724400646750,-500.0,0.00010997,2]
[335652310,1724400646759,-500.0,0.00010997,2]
[335652312,1724400646769,-500.0,0.00010997,2]
[335652314,1724400646779,-753.9,0.00010997,2]
[335652316,1724400646789,-500.0,0.00010997,2]
[335652318,1724400646799,-500.0,0.00010997,2]
[335652320,1724400646809,-500.0,0.00010997,2]
[335652322,1724400646819,-1382.8,0.00010997,2]
[335652324,1724400646830,-500.0,0.00010997,2]
[335652326,1724400646840,-753.6,0.00010997,2]
[335652328,1724400646850,-500.0,0.00010997,2]
[335652329,1724400646862,-500.0,0.00010997,2]
[335652330,1724400646874,-642.6,0.00010997,2]
[335652331,1724400647053,-500.0,0.00010997,2]
[335652332,1724400647068,-1247.56,0.00010997,2]
[335652333,1724400647077,-500.0,0.00010997,2]
[335652334,1724400647087,-500.0,0.00010997,2]
[335652335,1724400647097,-500.0,0.00010997,2]
[335652336,1724400647106,-1013.61,0.00010997,2]
[335652337,1724400647116,-1259.99,0.00010997,2]
[335652338,1724400647126,-625.9,0.00010997,2]
[335652339,1724400647135,-500.0,0.00010997,2]
[335652340,1724400647144,-1422.15,0.00010997,2]
[335652341,1724400647154,-500.0,0.00010997,2]
[335652342,1724400647163,-688.2,0.00010997,2]
[335652343,1724400647173,-500.0,0.00010997,2]
[335652344,1724400647183,-500.0,0.00010997,2]
[335652345,1724400647193,-500.0,0.00010997,2]
[335652346,1724400647202,-1125.94,0.00010997,2]
[335652347,1724400647211,-500.0,0.00010997,2]
[335652348,1724400647221,-828.08,0.00010997,2]
[335652349,1724400647230,-500.0,0.00010997,2]
[335652350,1724400647240,-500.0,0.00010997,2]
[335652351,1724400647249,-500.0,0.00010997,2]
[335652352,1724400647259,-635.66,0.00010997,2]
[335652353,1724400647268,-500.0,0.00010997,2]
[335652354,1724400647277,-500.0,0.00010997,2]
[335652355,1724400647286,-500.0,0.00010997,2]
[335652356,1724400647296,-688.1,0.00010997,2]
[335652357,1724400647305,-500.0,0.00010997,2]
[335652358,1724400647314,-500.0,0.00010997,2]
[335652359,1724400647324,-1580.04,0.00010997,2]
[335652360,1724400647333,-1246.4,0.00010997,2]
[335652361,1724400647343,-500.0,0.00010997,2]
[335652363,1724400647352,-505.93296402,0.00010997,2]
[335652365,1724400647362,-769.32,0.00010997,2]
[335652367,1724400647371,-500.0,0.00010997,2]
[335652369,1724400647381,-500.0,0.00010997,2]
[335652371,1724400647391,-500.0,0.00010997,2]
[335652373,1724400647401,-500.0,0.00010997,2]
[335652375,1724400647411,-500.0,0.00010997,2]
[335652377,1724400647420,-500.0,0.00010997,2]
[335652379,1724400647429,-2559.71,0.00010997,2]
[335652381,1724400647439,-573.59,0.00010997,2]
[335652383,1724400647448,-500.0,0.00010997,2]
[335652385,1724400647457,-818.25,0.00010997,2]
[335652387,1724400647467,-639.86622698,0.00010997,2]
[335652389,1724400647477,-4788.83,0.00010997,2]
[335652391,1724400647487,-609.58,0.00010997,2]
[335652393,1724400647497,-500.0,0.00010997,2]
[335652395,1724400647506,-4426.12,0.00010997,2]
[335652397,1724400647517,-1442.45,0.00010997,2]
[335652399,1724400647526,-4426.12,0.00010997,2]
[335652401,1724400647535,-520.68506397,0.00010997,2]
[335652403,1724400647545,-2434.47,0.00010997,2]
[335652405,1724400647555,-500.0,0.00010997,2]
[335652407,1724400647565,-500.0,0.00010997,2]
[335652409,1724400647574,-500.0,0.00010997,2]
[335652411,1724400647584,-500.0,0.00010997,2]
[335652413,1724400647593,-2084.78,0.00010997,2]
[335652415,1724400647603,-5256.03,0.00010997,2]
[335652417,1724400647612,-5256.03,0.00010997,2]
[335652419,1724400647623,-2365.1,0.00010997,2]
[335652421,1724400647633,-848.69,0.00010997,2]
[335652423,1724400647643,-500.0,0.00010997,2]
[335652425,1724400647652,-500.0,0.00010997,2]
[335652427,1724400647662,-500.0,0.00010997,2]
[335652429,1724400647671,-1354.96,0.00010997,2]
[335652430,1724400647680,-1487.09,0.00010997,2]
[335652431,1724400647690,-4415.16,0.00010997,2]
[335652432,1724400647700,-704.95,0.00010997,2]
[335652433,1724400647711,-500.0,0.00010997,2]
[335652434,1724400647722,-500.0,0.00010997,2]
[335652435,1724400647731,-500.0,0.00010997,2]
[335652436,1724400647741,-9902.43,0.00010997,2]
[335652437,1724400647754,-507.24334128,0.00010997,2]
[335652438,1724400647765,-500.0,0.00010997,2]
[335652439,1724400647775,-500.0,0.00010997,2]
[335652440,1724400647785,-500.0,0.00010997,2]
[335652441,1724400647795,-500.0,0.00010997,2]
[335652442,1724400647805,-500.0,0.00010997,2]
[335652443,1724400647816,-609.48,0.00010997,2]
[335652444,1724400647825,-609.48,0.00010997,2]
[335652445,1724400647835,-500.0,0.00010997,2]
[335652446,1724400647845,-500.0,0.00010997,2]
[335652447,1724400647854,-500.0,0.00010997,2]
[335652448,1724400647867,-513.41,0.00010997,2]
[335652449,1724400647876,-513.41,0.00010997,2]
[335652450,1724400647886,-513.52,0.00010997,2]
[335652451,1724400647895,-513.52,0.00010997,2]
[335652452,1724400647905,-355.1518638,0.00010998,2]
[335652453,1724400647915,-500.0,0.00010998,2]
[335652454,1724400647925,-425.58,0.00010998,2]
[335652455,1724400647935,-500.0,0.00010998,2]
[335652456,1724400647946,-500.0,0.00010998,2]
[335652457,1724400647957,-600.37,0.00010998,2]
[335652458,1724400647968,-500.0,0.00010998,2]
[335652459,1724400647977,-512.24,0.00010998,2]
[335652460,1724400647987,-500.0,0.00010998,2]
[335652461,1724400647997,-500.0,0.00010998,2]
[335652462,1724400648006,-500.0,0.00010998,2]
[335652463,1724400648016,-288.16,0.00010998,2]
[335652464,1724400648025,-500.0,0.00010998,2]
[335652465,1724400648035,-179.8,0.00010998,2]
[335652466,1724400648044,-500.0,0.00010998,2]
[335652467,1724400648054,-500.0,0.00010998,2]
[335652468,1724400648063,-216.22,0.00010998,2]
[335652469,1724400648073,-500.0,0.00010998,2]